[Event "Betsys MČR v online bleskovém šachu 2021"]
[Site "Chess.com"]
[Date "2021.04.17"]
[Round "1"]
[White "ffbp3q"]
[Black "Smetanka674"]
[Result "1/2-1/2"]
[WhiteElo "2383"]
[BlackElo "1757"]
[TimeControl "180+1"]
[EndTime "9:07:53 PDT"]
[Termination "Remíza dohodou"]

1. d4 {[%clk 0:03:00.9]} 1... Nf6 {[%clk 0:02:58.4]} 2. c4 {[%clk 0:03:00.8]}
2... e5 {[%clk 0:02:57.9]} 3. dxe5 {[%clk 0:03:00.8]} 3... Ng4 {[%clk
0:02:57.9]} 4. Nf3 {[%clk 0:03:00]} 4... Nc6 {[%clk 0:02:58]} 5. Bf4 {[%clk
0:02:58]} 5... Bb4+ {[%clk 0:02:57.4]} 6. Nbd2 {[%clk 0:02:57.4]} 6... Qe7
{[%clk 0:02:57.3]} 7. e3 {[%clk 0:02:57]} 7... Ngxe5 {[%clk 0:02:56.1]} 8. Nxe5
{[%clk 0:02:53.2]} 8... Nxe5 {[%clk 0:02:56]} 9. Be2 {[%clk 0:02:53.4]} 9... O-O
{[%clk 0:02:53.3]} 10. O-O {[%clk 0:02:52.8]} 10... d6 {[%clk 0:02:51.7]} 11.
Nb3 {[%clk 0:02:46.7]} 11... Bf5 {[%clk 0:02:40.3]} 12. a3 {[%clk 0:02:11.5]}
12... Bc5 {[%clk 0:02:39.2]} 13. Nxc5 {[%clk 0:02:06.5]} 13... dxc5 {[%clk
0:02:39.2]} 14. Qd5 {[%clk 0:02:00]} 14... Rfe8 {[%clk 0:02:21.3]} 15. Bxe5
{[%clk 0:01:57.6]} 15... Qxe5 {[%clk 0:02:20.2]} 16. Qxe5 {[%clk 0:01:57.6]}
16... Rxe5 {[%clk 0:02:19.3]} 17. Rfd1 {[%clk 0:01:57.1]} 17... h6 {[%clk
0:02:16.1]} 18. Rd2 {[%clk 0:01:55.7]} 18... c6 {[%clk 0:02:09.3]} 19. Rad1
{[%clk 0:01:55.1]} 19... Rae8 {[%clk 0:02:06.5]} 20. h3 {[%clk 0:01:54.8]} 20...
Re4 {[%clk 0:01:59.1]} 21. Bd3 {[%clk 0:01:53.1]} 21... R4e5 {[%clk 0:01:58.6]}
22. Bxf5 {[%clk 0:01:52.7]} 22... Rxf5 {[%clk 0:01:58.1]} 23. Rd7 {[%clk
0:01:52.5]} 23... b5 {[%clk 0:01:53.9]} 24. Rxa7 {[%clk 0:01:42.7]} 24... Re4
{[%clk 0:01:47.8]} 25. Rc1 {[%clk 0:01:38.3]} 25... bxc4 {[%clk 0:01:46.3]} 26.
Rc7 {[%clk 0:01:36.5]} 26... Rf6 {[%clk 0:01:45.4]} 27. Rd1 {[%clk 0:01:35.1]}
27... Re5 {[%clk 0:01:41.9]} 28. Rd8+ {[%clk 0:01:33.8]} 28... Kh7 {[%clk
0:01:39.8]} 29. Rdc8 {[%clk 0:01:33.8]} 29... Rd5 {[%clk 0:01:37.9]} 30. Rxc6
{[%clk 0:01:31.7]} 30... Rxc6 {[%clk 0:01:37.1]} 31. Rxc6 {[%clk 0:01:30.9]}
31... Rd1+ {[%clk 0:01:37]} 32. Kh2 {[%clk 0:01:30.9]} 32... Rb1 {[%clk
0:01:37.9]} 33. Rxc5 {[%clk 0:01:29.7]} 33... Rxb2 {[%clk 0:01:37.8]} 34. Kg3
{[%clk 0:01:26]} 34... Ra2 {[%clk 0:01:35.5]} 35. Rxc4 {[%clk 0:01:25.9]} 35...
Rxa3 {[%clk 0:01:35.8]} 36. Rc7 {[%clk 0:01:25.6]} 36... Kg6 {[%clk 0:01:34.5]}
37. Kf3 {[%clk 0:01:25.7]} 37... Ra2 {[%clk 0:01:32.9]} 38. g4 {[%clk
0:01:25.2]} 38... f6 {[%clk 0:01:30.6]} 39. Kg3 {[%clk 0:01:25.1]} 39... Rd2
{[%clk 0:01:26]} 40. h4 {[%clk 0:01:25]} 40... Rd5 {[%clk 0:01:22.6]} 41. h5+
{[%clk 0:01:24.4]} 41... Kh7 {[%clk 0:01:21.7]} 42. f4 {[%clk 0:01:18.8]} 42...
Rd3 {[%clk 0:01:20.5]} 43. Kf3 {[%clk 0:01:18.8]} 43... Rd1 {[%clk 0:01:20.4]}
44. Ke4 {[%clk 0:01:15.4]} 44... Rg1 {[%clk 0:01:19.4]} 45. Kf5 {[%clk 0:01:15]}
45... Rg3 {[%clk 0:01:18.8]} 46. e4 {[%clk 0:01:14.8]} 46... Rg1 {[%clk
0:01:17.2]} 47. Rd7 {[%clk 0:01:09.1]} 47... Re1 {[%clk 0:01:16.6]} 48. Rd6
{[%clk 0:01:05.2]} 48... Re2 {[%clk 0:01:14.7]} 49. e5 {[%clk 0:01:01.9]} 49...
fxe5 {[%clk 0:01:14.2]} 50. fxe5 {[%clk 0:01:01.8]} 50... Rf2+ {[%clk 0:01:14]}
51. Ke4 {[%clk 0:01:01]} 51... Kg8 {[%clk 0:01:12.4]} 52. e6 {[%clk 0:00:53.1]}
52... Kf8 {[%clk 0:01:09.6]} 53. Rd7 {[%clk 0:00:51.8]} 53... Re2+ {[%clk
0:01:07]} 54. Kf5 {[%clk 0:00:51.2]} 54... Rf2+ {[%clk 0:01:06.7]} 55. Ke5
{[%clk 0:00:40.4]} 55... Re2+ {[%clk 0:01:06.3]} 56. Kd5 {[%clk 0:00:36.9]}
56... Rd2+ {[%clk 0:01:06]} 57. Kc6 {[%clk 0:00:35.4]} 57... Rc2+ {[%clk
0:01:05.2]} 58. Kb7 {[%clk 0:00:33.8]} 58... Re2 {[%clk 0:01:04.9]} 59. Rf7+
{[%clk 0:00:32.5]} 59... Kg8 {[%clk 0:01:01.9]} 60. Re7 {[%clk 0:00:30.7]} 60...
Kf8 {[%clk 0:01:01.9]} 61. Rf7+ {[%clk 0:00:25.1]} 61... Kg8 {[%clk 0:01:00.9]}
1/2-1/2

[Event "Betsys MČR v online bleskovém šachu 2021"]
[Site "Chess.com"]
[Date "2021.04.17"]
[Round "1"]
[White "SamikGame"]
[Black "vit_rosenbaum"]
[Result "1/2-1/2"]
[WhiteElo "1612"]
[BlackElo "2207"]
[TimeControl "180+1"]
[EndTime "9:07:53 PDT"]
[Termination "Remíza opakováním pozice"]

1. e4 {[%clk 0:02:58]} 1... e6 {[%clk 0:02:59.7]} 2. d4 {[%clk 0:02:56.5]} 2...
d5 {[%clk 0:03:00.3]} 3. exd5 {[%clk 0:02:56.7]} 3... exd5 {[%clk 0:03:00.4]} 4.
Nf3 {[%clk 0:02:55.5]} 4... Bd6 {[%clk 0:02:59]} 5. Bd3 {[%clk 0:02:52.3]} 5...
Bg4 {[%clk 0:02:58.8]} 6. h3 {[%clk 0:02:49.3]} 6... Bh5 {[%clk 0:02:58.2]} 7.
O-O {[%clk 0:02:45.9]} 7... Nc6 {[%clk 0:02:57.7]} 8. Nc3 {[%clk 0:02:42.6]}
8... Nxd4 {[%clk 0:02:45.1]} 9. g4 {[%clk 0:02:35.3]} 9... Nxf3+ {[%clk
0:02:42.7]} 10. Qxf3 {[%clk 0:02:34.7]} 10... Bg6 {[%clk 0:02:42.3]} 11. Nxd5
{[%clk 0:02:29.1]} 11... Ne7 {[%clk 0:02:31.7]} 12. Bxg6 {[%clk 0:02:17.7]}
12... hxg6 {[%clk 0:02:29.4]} 13. Bg5 {[%clk 0:02:12]} 13... O-O {[%clk
0:02:12.6]} 14. Nxe7+ {[%clk 0:02:04.9]} 14... Bxe7 {[%clk 0:02:12.2]} 15. Bxe7
{[%clk 0:02:01.6]} 15... Qxe7 {[%clk 0:02:12.3]} 16. Rfe1 {[%clk 0:01:59.7]}
16... Qb4 {[%clk 0:02:04.4]} 17. b3 {[%clk 0:01:55.4]} 17... Rfe8 {[%clk
0:02:03]} 18. Rxe8+ {[%clk 0:01:47.2]} 18... Rxe8 {[%clk 0:02:02.4]} 19. c3
{[%clk 0:01:34.8]} 19... Qc5 {[%clk 0:01:47]} 20. Rd1 {[%clk 0:01:27.5]} 20...
c6 {[%clk 0:01:33.6]} 21. Rd7 {[%clk 0:01:22.5]} 21... Re7 {[%clk 0:01:33.4]}
22. Rd8+ {[%clk 0:01:17.6]} 22... Kh7 {[%clk 0:01:33]} 23. a4 {[%clk 0:00:56.7]}
23... Qg5 {[%clk 0:01:26.8]} 24. Rd1 {[%clk 0:00:46.6]} 24... f5 {[%clk
0:01:24.1]} 25. Kh2 {[%clk 0:00:28.9]} 25... Re4 {[%clk 0:01:13.2]} 26. gxf5
{[%clk 0:00:25.7]} 26... gxf5 {[%clk 0:01:03.8]} 27. Rd7 {[%clk 0:00:21.6]}
27... Re1 {[%clk 0:00:40]} 28. Qg3 {[%clk 0:00:16]} 28... Qxg3+ {[%clk
0:00:35.9]} 29. Kxg3 {[%clk 0:00:16.9]} 29... Rc1 {[%clk 0:00:30.9]} 30. Rxb7
{[%clk 0:00:16.5]} 30... Rxc3+ {[%clk 0:00:31.1]} 31. Kg2 {[%clk 0:00:15.9]}
31... Kg6 {[%clk 0:00:29.4]} 32. Rxa7 {[%clk 0:00:16.1]} 32... Rxb3 {[%clk
0:00:29.1]} 33. Rc7 {[%clk 0:00:16.8]} 33... Rc3 {[%clk 0:00:27.3]} 34. a5
{[%clk 0:00:16.8]} 34... Kf6 {[%clk 0:00:20.4]} 35. a6 {[%clk 0:00:17]} 35... g6
{[%clk 0:00:19.8]} 36. a7 {[%clk 0:00:17.4]} 36... Ra3 {[%clk 0:00:20.1]} 37.
Rxc6+ {[%clk 0:00:15.9]} 37... Kg5 {[%clk 0:00:19.6]} 38. Rc7 {[%clk 0:00:16]}
38... Kh5 {[%clk 0:00:18.4]} 39. Rf7 {[%clk 0:00:15.8]} 39... Kg5 {[%clk
0:00:17.9]} 40. Rc7 {[%clk 0:00:15.7]} 40... Kh5 {[%clk 0:00:18]} 41. Rb7 {[%clk
0:00:15.2]} 41... Kg5 {[%clk 0:00:17.8]} 42. Rc7 {[%clk 0:00:15.7]} 1/2-1/2

[Event "Betsys MČR v online bleskovém šachu 2021"]
[Site "Chess.com"]
[Date "2021.04.17"]
[Round "1"]
[White "Tlaskin"]
[Black "Lukuluss88"]
[Result "0-1"]
[WhiteElo "1367"]
[BlackElo "2079"]
[TimeControl "180+1"]
[EndTime "9:07:53 PDT"]
[Termination "Uživatel Lukuluss88 zvítězil na čas"]

1. e4 {[%clk 0:02:59.2]} 1... d5 {[%clk 0:02:59.2]} 2. exd5 {[%clk 0:02:58.4]}
2... Qxd5 {[%clk 0:02:59.1]} 3. Nc3 {[%clk 0:02:57.7]} 3... Qa5 {[%clk
0:02:58.4]} 4. d4 {[%clk 0:02:57]} 4... c6 {[%clk 0:02:58.3]} 5. Nf3 {[%clk
0:02:56]} 5... Bg4 {[%clk 0:02:57.8]} 6. h3 {[%clk 0:02:54.1]} 6... Bh5 {[%clk
0:02:56.3]} 7. Bd2 {[%clk 0:02:39.7]} 7... Qc7 {[%clk 0:02:55.6]} 8. g4 {[%clk
0:02:35.9]} 8... Bg6 {[%clk 0:02:55.3]} 9. Ne5 {[%clk 0:02:29.8]} 9... Nd7
{[%clk 0:02:50.5]} 10. Bf4 {[%clk 0:02:16.6]} 10... Nxe5 {[%clk 0:02:39.7]} 11.
Bxe5 {[%clk 0:02:15.4]} 11... Qd7 {[%clk 0:02:37.5]} 12. Qd2 {[%clk 0:02:03]}
12... f6 {[%clk 0:02:33.4]} 13. Bg3 {[%clk 0:01:58.5]} 13... Rd8 {[%clk
0:02:30.6]} 14. O-O-O {[%clk 0:01:42.4]} 14... e6 {[%clk 0:02:23.7]} 15. Bc4
{[%clk 0:01:37]} 15... Bf7 {[%clk 0:02:09]} 16. Rhe1 {[%clk 0:01:22.8]} 16...
Be7 {[%clk 0:01:15.9]} 17. f4 {[%clk 0:01:11.9]} 17... Kf8 {[%clk 0:01:05]} 18.
Bb3 {[%clk 0:00:41]} 18... h5 {[%clk 0:01:00.1]} 19. Qf2 {[%clk 0:00:32]} 19...
hxg4 {[%clk 0:00:43.7]} 20. hxg4 {[%clk 0:00:31.1]} 20... Nh6 {[%clk 0:00:43.6]}
21. Qf3 {[%clk 0:00:16.6]} 21... e5 {[%clk 0:00:20.1]} 22. fxe5 {[%clk
0:00:14.3]} 22... Qxg4 {[%clk 0:00:19.7]} 23. Qxg4 {[%clk 0:00:10.6]} 23... Nxg4
{[%clk 0:00:19.5]} 24. exf6 {[%clk 0:00:09.3]} 24... Bxf6 {[%clk 0:00:18.9]} 25.
Rf1 {[%clk 0:00:07.9]} 25... Ne3 {[%clk 0:00:17.7]} 26. Rxf6 {[%clk 0:00:06.1]}
26... gxf6 {[%clk 0:00:17.4]} 27. Re1 {[%clk 0:00:05.4]} 27... Ng2 {[%clk
0:00:17.1]} 28. Rg1 {[%clk 0:00:04.6]} 28... Ne3 {[%clk 0:00:17.1]} 29. Re1
{[%clk 0:00:04]} 29... Nd5 {[%clk 0:00:17]} 30. Nxd5 {[%clk 0:00:03.2]} 30...
Bxd5 {[%clk 0:00:15.6]} 31. Rf1 {[%clk 0:00:02.6]} 31... Kf7 {[%clk 0:00:15.7]}
32. Bxd5+ {[%clk 0:00:01.8]} 32... Rxd5 {[%clk 0:00:15.1]} 0-1

[Event "Betsys MČR v online bleskovém šachu 2021"]
[Site "Chess.com"]
[Date "2021.04.17"]
[Round "1"]
[White "Maximon2012"]
[Black "Honza_13"]
[Result "1-0"]
[WhiteElo "1097"]
[BlackElo "1851"]
[TimeControl "180+1"]
[EndTime "9:07:53 PDT"]
[Termination "Uživatel Maximon2012 zvítězil na čas"]

1. g3 {[%clk 0:02:54.4]} 1... d5 {[%clk 0:02:56.3]} 2. Bg2 {[%clk 0:02:54.7]}
2... Nf6 {[%clk 0:02:56.3]} 3. Nf3 {[%clk 0:02:52.2]} 3... g6 {[%clk 0:02:55.8]}
4. O-O {[%clk 0:02:51.7]} 4... Bg7 {[%clk 0:02:56.1]} 5. d3 {[%clk 0:02:50.2]}
5... O-O {[%clk 0:02:54.6]} 6. Nc3 {[%clk 0:02:48.5]} 6... c5 {[%clk 0:02:49.3]}
7. Bf4 {[%clk 0:02:45.3]} 7... Nc6 {[%clk 0:02:47.6]} 8. e4 {[%clk 0:02:39.2]}
8... Be6 {[%clk 0:02:00.2]} 9. e5 {[%clk 0:02:29.5]} 9... Nh5 {[%clk 0:01:53.5]}
10. Qd2 {[%clk 0:02:18.2]} 10... Nxf4 {[%clk 0:01:50.1]} 11. Qxf4 {[%clk
0:02:15.6]} 11... a6 {[%clk 0:01:40]} 12. Rad1 {[%clk 0:01:49.3]} 12... Rc8
{[%clk 0:01:27.5]} 13. Rfe1 {[%clk 0:01:36]} 13... Qc7 {[%clk 0:01:25.7]} 14.
Re2 {[%clk 0:01:31]} 14... d4 {[%clk 0:00:54.1]} 15. Na4 {[%clk 0:01:27.3]}
15... b6 {[%clk 0:00:51.6]} 16. b3 {[%clk 0:01:25.8]} 16... Bd5 {[%clk
0:00:35.9]} 17. Rde1 {[%clk 0:01:04.5]} 17... e6 {[%clk 0:00:14]} 18. c4 {[%clk
0:00:30.6]} 18... dxc3 {[%clk 0:00:11.1]} 19. Nxc3 {[%clk 0:00:29]} 19... Bxf3
{[%clk 0:00:11.2]} 20. Bxf3 {[%clk 0:00:28.2]} 20... Nd4 {[%clk 0:00:11.2]} 21.
Re4 {[%clk 0:00:22.9]} 21... Qc6 {[%clk 0:00:06.9]} 22. Rxd4 {[%clk 0:00:19.9]}
22... Qc7 {[%clk 0:00:03.4]} 23. Rde4 {[%clk 0:00:18.6]} 23... Rfd8 {[%clk
0:00:02.5]} 24. R4e3 {[%clk 0:00:17.5]} 24... b5 {[%clk 0:00:02.4]} 25. Rd1
{[%clk 0:00:16.9]} 25... Rd4 {[%clk 0:00:02.1]} 26. Qg5 {[%clk 0:00:13.5]} 26...
h6 {[%clk 0:00:01.6]} 27. Qxg6 {[%clk 0:00:07.1]} 27... fxg6 {[%clk 0:00:00.9]}
28. Bh5 {[%clk 0:00:05.5]} 1-0

[Event "Betsys MČR v online bleskovém šachu 2021"]
[Site "Chess.com"]
[Date "2021.04.17"]
[Round "1"]
[White "TheFr0zenSun"]
[Black "MiroslavBucek"]
[Result "1-0"]
[WhiteElo "2234"]
[BlackElo "1609"]
[TimeControl "180+1"]
[EndTime "9:07:54 PDT"]
[Termination "Uživatel TheFr0zenSun zvítězil po vzdání soupeře"]

1. d4 {[%clk 0:02:59.5]} 1... d5 {[%clk 0:02:58.5]} 2. Bf4 {[%clk 0:02:58.9]}
2... Nf6 {[%clk 0:02:56.1]} 3. e3 {[%clk 0:02:58.6]} 3... c5 {[%clk 0:02:54.6]}
4. c3 {[%clk 0:02:58]} 4... Nc6 {[%clk 0:02:54.5]} 5. Nd2 {[%clk 0:02:57.6]}
5... Bg4 {[%clk 0:02:52.7]} 6. Qb3 {[%clk 0:02:42.6]} 6... Qd7 {[%clk
0:02:15.5]} 7. Ngf3 {[%clk 0:02:39.4]} 7... c4 {[%clk 0:02:02.3]} 8. Qd1 {[%clk
0:02:10.4]} 8... Ne4 {[%clk 0:01:57.9]} 9. Be2 {[%clk 0:02:08]} 9... Nxd2 {[%clk
0:01:54.3]} 10. Qxd2 {[%clk 0:02:06.2]} 10... e6 {[%clk 0:01:52.6]} 11. b3
{[%clk 0:01:59.6]} 11... b5 {[%clk 0:01:51.3]} 12. a4 {[%clk 0:01:58.3]} 12...
bxa4 {[%clk 0:01:23.4]} 13. bxc4 {[%clk 0:01:57.3]} 13... Bd6 {[%clk 0:01:17.5]}
14. cxd5 {[%clk 0:01:50.3]} 14... exd5 {[%clk 0:01:09.7]} 15. Bxd6 {[%clk
0:01:46.9]} 15... Qxd6 {[%clk 0:01:07.9]} 16. Rxa4 {[%clk 0:01:43.2]} 16... O-O
{[%clk 0:01:05.8]} 17. c4 {[%clk 0:01:34.1]} 17... dxc4 {[%clk 0:00:59]} 18.
Rxc4 {[%clk 0:01:33.4]} 18... Rac8 {[%clk 0:00:53.2]} 19. O-O {[%clk 0:01:23]}
19... Rfd8 {[%clk 0:00:52]} 20. Rfc1 {[%clk 0:01:06.6]} 20... Ne7 {[%clk
0:00:51.3]} 21. Rxc8 {[%clk 0:00:52.2]} 21... Rxc8 {[%clk 0:00:50.9]} 22. h3
{[%clk 0:00:51.5]} 22... Bh5 {[%clk 0:00:47.7]} 23. Rxc8+ {[%clk 0:00:42.4]}
23... Nxc8 {[%clk 0:00:47.3]} 24. Ne5 {[%clk 0:00:40.4]} 24... Bxe2 {[%clk
0:00:45.9]} 25. Qxe2 {[%clk 0:00:39.7]} 25... f6 {[%clk 0:00:44.5]} 26. Qc4+
{[%clk 0:00:38.5]} 26... Kf8 {[%clk 0:00:24.5]} 27. Qxc8+ {[%clk 0:00:37.8]}
27... Ke7 {[%clk 0:00:21.6]} 28. Qb7+ {[%clk 0:00:32.3]} 28... Ke6 {[%clk
0:00:17.5]} 29. Nf3 {[%clk 0:00:28.1]} 29... Qb6 {[%clk 0:00:12.9]} 30. Qxb6+
{[%clk 0:00:26.9]} 30... axb6 {[%clk 0:00:12.7]} 31. Kf1 {[%clk 0:00:27.6]}
31... Kd5 {[%clk 0:00:12.6]} 32. Ke2 {[%clk 0:00:27.9]} 32... Kc4 {[%clk
0:00:12.9]} 33. Kd2 {[%clk 0:00:27.9]} 33... b5 {[%clk 0:00:12.7]} 34. Kc2
{[%clk 0:00:27.9]} 34... Kb4 {[%clk 0:00:12.2]} 35. Nd2 {[%clk 0:00:24.9]} 35...
Ka4 {[%clk 0:00:09.5]} 36. d5 {[%clk 0:00:22.3]} 36... b4 {[%clk 0:00:09.3]} 37.
d6 {[%clk 0:00:22.6]} 1-0

[Event "Betsys MČR v online bleskovém šachu 2021"]
[Site "Chess.com"]
[Date "2021.04.17"]
[Round "1"]
[White "Z_u_z_i"]
[Black "Dvacetsekund"]
[Result "0-1"]
[WhiteElo "1545"]
[BlackElo "2194"]
[TimeControl "180+1"]
[EndTime "9:07:55 PDT"]
[Termination "Uživatel Dvacetsekund zvítězil matem"]

1. e4 {[%clk 0:02:58.8]} 1... c5 {[%clk 0:02:59.3]} 2. Nc3 {[%clk 0:02:57.9]}
2... Nc6 {[%clk 0:02:58.8]} 3. Bb5 {[%clk 0:02:56.9]} 3... Nd4 {[%clk
0:02:56.5]} 4. Bc4 {[%clk 0:02:56.5]} 4... e6 {[%clk 0:02:50.6]} 5. d3 {[%clk
0:02:55.2]} 5... Ne7 {[%clk 0:02:35.9]} 6. f4 {[%clk 0:02:52.7]} 6... Nec6
{[%clk 0:02:33.4]} 7. Nf3 {[%clk 0:02:52.1]} 7... Be7 {[%clk 0:02:30.6]} 8. O-O
{[%clk 0:02:51.6]} 8... O-O {[%clk 0:02:28.7]} 9. Nxd4 {[%clk 0:02:45.2]} 9...
Nxd4 {[%clk 0:02:22]} 10. Ne2 {[%clk 0:02:44]} 10... Nxe2+ {[%clk 0:02:20.7]}
11. Qxe2 {[%clk 0:02:43.3]} 11... Re8 {[%clk 0:02:15.7]} 12. Be3 {[%clk
0:02:40.4]} 12... d5 {[%clk 0:02:13.7]} 13. Bb3 {[%clk 0:02:29.7]} 13... dxe4
{[%clk 0:02:06.7]} 14. dxe4 {[%clk 0:02:28.8]} 14... Bd7 {[%clk 0:02:02.2]} 15.
Rad1 {[%clk 0:02:27.7]} 15... Qc7 {[%clk 0:02:01.9]} 16. Qf2 {[%clk 0:02:21]}
16... Bc6 {[%clk 0:01:50]} 17. Bxc5 {[%clk 0:02:01.1]} 17... Bxe4 {[%clk
0:01:45.4]} 18. Bxe7 {[%clk 0:01:59.2]} 18... Rxe7 {[%clk 0:01:39.8]} 19. c3
{[%clk 0:01:55.8]} 19... b6 {[%clk 0:01:35.2]} 20. Rd4 {[%clk 0:01:54.4]} 20...
Bf5 {[%clk 0:01:31.4]} 21. Rfd1 {[%clk 0:01:51.7]} 21... Rae8 {[%clk 0:01:29.7]}
22. Qd2 {[%clk 0:01:44.3]} 22... h6 {[%clk 0:01:14.2]} 23. h3 {[%clk 0:01:41.1]}
23... Qc5 {[%clk 0:01:12]} 24. Kh1 {[%clk 0:01:39.4]} 24... Qc6 {[%clk
0:01:08.1]} 25. Rd8 {[%clk 0:01:34.3]} 25... Bxh3 {[%clk 0:01:03.7]} 26. Rxe8+
{[%clk 0:01:31.7]} 26... Rxe8 {[%clk 0:01:03.9]} 27. Bc2 {[%clk 0:01:19.8]}
27... Bf5 {[%clk 0:00:58.4]} 28. Bb3 {[%clk 0:01:15.4]} 28... Qc7 {[%clk
0:00:48.7]} 29. Qe3 {[%clk 0:01:11.9]} 29... Rd8 {[%clk 0:00:47.9]} 30. Rxd8+
{[%clk 0:01:09.3]} 30... Qxd8 {[%clk 0:00:48.8]} 31. Kh2 {[%clk 0:01:07]} 31...
Qh4+ {[%clk 0:00:47.1]} 32. Kg1 {[%clk 0:01:06.9]} 32... Qd8 {[%clk 0:00:46.6]}
33. g3 {[%clk 0:01:03.5]} 33... Qd6 {[%clk 0:00:41.5]} 34. Kf2 {[%clk
0:00:59.6]} 34... Qc6 {[%clk 0:00:35.1]} 35. Qd4 {[%clk 0:00:51.4]} 35... Qh1
{[%clk 0:00:31.1]} 36. Qd8+ {[%clk 0:00:50.6]} 36... Kh7 {[%clk 0:00:30.9]} 37.
Qe7 {[%clk 0:00:43]} 37... Be4 {[%clk 0:00:23.2]} 38. Qxf7 {[%clk 0:00:34.5]}
38... Qf3+ {[%clk 0:00:20.1]} 39. Ke1 {[%clk 0:00:34.1]} 39... Qe3+ {[%clk
0:00:14.6]} 40. Kd1 {[%clk 0:00:32.3]} 40... Bf3+ {[%clk 0:00:12.7]} 41. Kc2
{[%clk 0:00:29.5]} 41... Qe2+ {[%clk 0:00:09.4]} 42. Kc1 {[%clk 0:00:28.6]}
42... Qe1+ {[%clk 0:00:08.9]} 43. Kc2 {[%clk 0:00:27.2]} 43... Be4# {[%clk
0:00:08.2]} 0-1

[Event "Betsys MČR v online bleskovém šachu 2021"]
[Site "Chess.com"]
[Date "2021.04.17"]
[Round "1"]
[White "Qb1xh8"]
[Black "Kokos3"]
[Result "1-0"]
[WhiteElo "2137"]
[BlackElo "1488"]
[TimeControl "180+1"]
[EndTime "9:07:56 PDT"]
[Termination "Uživatel Qb1xh8 zvítězil po vzdání soupeře"]

1. e4 {[%clk 0:03:00.9]} 1... e5 {[%clk 0:02:59.7]} 2. Nf3 {[%clk 0:03:00.4]}
2... Nc6 {[%clk 0:02:59.8]} 3. Bb5 {[%clk 0:02:59]} 3... a6 {[%clk 0:03:00]} 4.
Ba4 {[%clk 0:02:58.5]} 4... Nf6 {[%clk 0:02:59.7]} 5. O-O {[%clk 0:02:56.7]}
5... b5 {[%clk 0:02:55.1]} 6. Bb3 {[%clk 0:02:55.8]} 6... Be7 {[%clk 0:02:54.8]}
7. d4 {[%clk 0:02:49.1]} 7... d6 {[%clk 0:02:40.6]} 8. c4 {[%clk 0:02:02.7]}
8... Nxd4 {[%clk 0:02:26.2]} 9. Nxd4 {[%clk 0:02:01.3]} 9... exd4 {[%clk
0:02:25.8]} 10. Qxd4 {[%clk 0:01:57.9]} 10... Bb7 {[%clk 0:02:14.5]} 11. Re1
{[%clk 0:01:48.8]} 11... O-O {[%clk 0:02:13.1]} 12. Bf4 {[%clk 0:01:44.6]} 12...
Nd7 {[%clk 0:02:03.1]} 13. cxb5 {[%clk 0:01:33.1]} 13... axb5 {[%clk 0:02:01.1]}
14. Nc3 {[%clk 0:01:33.2]} 14... Bc6 {[%clk 0:01:37.1]} 15. Bc2 {[%clk
0:01:20.4]} 15... Bf6 {[%clk 0:01:32.1]} 16. Qd2 {[%clk 0:01:19.9]} 16... Ne5
{[%clk 0:01:28.5]} 17. b3 {[%clk 0:00:59.9]} 17... g6 {[%clk 0:01:18.7]} 18. Bh6
{[%clk 0:00:58.6]} 18... Bg7 {[%clk 0:01:10.8]} 19. Bxg7 {[%clk 0:00:57.9]}
19... Kxg7 {[%clk 0:01:10.7]} 20. f4 {[%clk 0:00:58.5]} 20... Nd7 {[%clk
0:01:05.9]} 21. Rad1 {[%clk 0:00:58.8]} 21... Nc5 {[%clk 0:00:58.6]} 22. Bb1
{[%clk 0:00:54.1]} 22... Re8 {[%clk 0:00:55.4]} 23. Qd4+ {[%clk 0:00:47.2]}
23... Qf6 {[%clk 0:00:50.7]} 24. e5 {[%clk 0:00:47.4]} 24... Qh4 {[%clk
0:00:39.7]} 25. exd6+ {[%clk 0:00:44.9]} 25... Kg8 {[%clk 0:00:28.7]} 26. Rxe8+
{[%clk 0:00:21.2]} 26... Rxe8 {[%clk 0:00:28.7]} 27. Qf2 {[%clk 0:00:21.6]}
27... Qxf2+ {[%clk 0:00:27]} 28. Kxf2 {[%clk 0:00:22.5]} 28... cxd6 {[%clk
0:00:25]} 29. Rxd6 {[%clk 0:00:23.4]} 29... Ne4+ {[%clk 0:00:22]} 30. Bxe4
{[%clk 0:00:21.6]} 30... Bxe4 {[%clk 0:00:21.5]} 31. Rd4 {[%clk 0:00:21.2]}
31... Bc6 {[%clk 0:00:19.4]} 32. Nd5 {[%clk 0:00:21]} 32... Ra8 {[%clk
0:00:17.2]} 33. Ne7+ {[%clk 0:00:20.2]} 33... Kg7 {[%clk 0:00:15.7]} 34. Nxc6
{[%clk 0:00:21.1]} 34... Rxa2+ {[%clk 0:00:15]} 35. Kf3 {[%clk 0:00:21.3]} 35...
Rb2 {[%clk 0:00:14.9]} 36. Rb4 {[%clk 0:00:21.3]} 36... Rc2 {[%clk 0:00:14.9]}
37. Nd4 {[%clk 0:00:21.3]} 37... Rc3+ {[%clk 0:00:15.1]} 38. Kf2 {[%clk
0:00:21.3]} 38... Rc2+ {[%clk 0:00:15.6]} 39. Nxc2 {[%clk 0:00:21]} 39... Kf6
{[%clk 0:00:16]} 40. Rxb5 {[%clk 0:00:20.7]} 40... Ke7 {[%clk 0:00:15.4]} 41.
Re5+ {[%clk 0:00:21]} 41... Kd7 {[%clk 0:00:14.9]} 42. b4 {[%clk 0:00:21.9]} 1-0